bitfinex/quotes_SOLUSD_20260109
["timestamp","ask_amount","ask_price","bid_price","bid_amount"]
[1767969271606,7.76374361,137.3,137.22,7.97986005]
[1767969271607,7.28657548,137.26,137.22,0.69328457]
[1767969272322,0.71269489,137.31,137.24,0.69328457]
[1767969272514,7.28657548,137.29,137.25,0.69328457]
[1767969272813,0.71269489,137.31,137.24,0.68741678]
[1767969273017,7.28657548,137.29,137.25,0.68741678]
[1767969273201,7.28657548,137.33,137.29,0.68741678]
[1767969273397,7.28657548,137.34,137.29,7.97399226]
[1767969273599,0.65574844,137.41,137.33,7.97399226]
[1767969273792,4.78657548,137.38,137.34,0.68741678]
[1767969273999,4.78657548,137.38,137.34,0.62741679]
[1767969274327,0.65574844,137.44,137.36,7.28657548]
[1767969274712,38.76380501,137.45,137.36,7.28657548]
[1767969274713,7.28657548,137.41,137.36,14.56636231]
[1767969275021,0.65574844,137.42,137.32,18.20515367]
[1767969275022,7.28657548,137.39,137.32,18.20515367]
[1767969275224,0.65574844,137.41,137.33,7.57089862]
[1767969275402,7.28657548,137.39,137.35,7.28029518]
[1767969275719,7.28657548,137.38,137.32,18.20515367]
[1767969275909,0.65574844,137.39,137.32,0.68741678]
[1767969276107,0.65574844,137.38,137.31,7.28657548]
[1767969276414,7.28657548,137.33,137.29,7.28368129]
[1767969277002,7.28657548,137.33,137.29,14.57025677]
[1767969277200,7.93602205,137.36,137.3,0.68741678]
[1767969277404,0.65574844,137.36,137.3,7.97399226]
[1767969277600,0.65574844,137.36,137.29,26.18072732]
[1767969277601,7.28657548,137.34,137.29,26.18072732]
[1767969277812,0.65574844,137.36,137.3,7.28657548]
[1767969278124,0.65574844,137.38,137.31,0.68741678]
[1767969278424,7.28657548,137.35,137.31,0.68741678]
[1767969278619,7.28657548,137.37,137.32,7.97399226]
[1767969278931,7.28657548,137.33,137.29,7.28334812]
[1767969279223,7.28657548,137.3,137.25,7.97302295]
[1767969279521,7.28657548,137.3,137.25,7.97399226]
[1767969279817,7.28657548,137.3,137.26,7.28529938]
[1767969280502,7.28657548,137.3,137.25,7.97399226]
[1767969280503,7.28657548,137.29,137.25,0.68741678]
[1767969280708,0.65574844,137.33,137.25,0.68741678]
[1767969280895,7.28657548,137.27,137.24,7.28650539]
[1767969281100,0.65574844,137.26,137.2,0.68741678]
[1767969281605,7.28657548,137.25,137.21,0.68741678]
[1767969281799,0.65574844,137.28,137.21,0.68741678]
[1767969282006,7.28657548,137.25,137.22,7.28717458]
[1767969282218,7.28657548,137.24,137.19,4.48752525]
[1767969282414,0.65574844,137.26,137.21,7.28800751]
[1767969282621,7.28657548,137.23,137.19,4.48752525]
[1767969282832,0.28432314,137.29,137.19,3.80010847]
[1767969282833,7.28657548,137.22,137.19,3.80010847]
[1767969283013,7.28657548,137.23,137.19,7.2891094]
[1767969283726,7.28657548,137.22,137.17,0.68741678]
[1767969283901,7.28657548,137.21,137.17,0.68741678]
[1767969284104,0.65574844,137.23,137.17,7.28987329]
[1767969284336,7.28657548,137.22,137.18,7.2895355]
[1767969284904,0.65574844,137.25,137.19,7.28914172]
[1767969285117,7.28657548,137.24,137.19,7.28914172]
[1767969285334,7.28657548,137.22,137.17,14.57640424]
[1767969285535,7.28657548,137.22,137.16,22.71887659]
[1767969285837,7.94232392,137.23,137.18,14.57625315]
[1767969286528,7.28657548,137.21,137.18,7.28967767]
[1767969286733,0.65574844,137.23,137.18,7.2895834]
[1767969287029,7.9418055,137.25,137.18,15.26357566]
[1767969287220,7.28657548,137.23,137.18,15.26357566]
[1767969287628,7.28657548,137.21,137.16,11.77883724]
[1767969288311,7.28657548,137.22,137.17,7.29014635]
[1767969288514,7.28657548,137.21,137.16,19.06943304]
[1767969288824,7.28657548,137.2,137.16,4.49226176]
[1767969289010,7.28657548,137.2,137.16,11.09549113]
[1767969289830,0.65412646,137.24,137.19,7.28657548]
[1767969290037,7.94070194,137.24,137.19,7.28657548]
[1767969290248,7.28657548,137.23,137.18,7.28657548]
[1767969290630,0.65412646,137.24,137.18,7.28657548]
[1767969290932,7.28657548,137.23,137.18,14.57591189]
[1767969291133,7.28657548,137.25,137.2,7.28657548]
[1767969291322,7.28657548,137.23,137.18,15.28680576]
[1767969291831,0.65412646,137.25,137.18,15.28680576]
[1767969292015,0.65412646,137.25,137.2,7.28657548]
[1767969292214,7.28657548,137.25,137.2,0.71089387]
[1767969292431,7.28657548,137.25,137.2,7.99746935]
[1767969292619,7.28657548,137.24,137.2,0.71089387]
[1767969293038,7.28657548,137.23,137.19,7.28865704]
[1767969293339,7.93963252,137.26,137.2,15.2859844]
[1767969293629,7.28657548,137.24,137.2,7.28851505]
[1767969293821,0.65412646,137.25,137.2,14.57509053]
[1767969294023,7.94070194,137.25,137.2,14.57509053]
[1767969294429,0.65412646,137.25,137.2,7.28851505]
[1767969294640,7.28657548,137.24,137.2,7.28851505]
[1767969294830,7.94070194,137.25,137.2,14.57509053]
[1767969295027,7.28657548,137.26,137.21,7.28657548]
[1767969295245,21.23911434,137.27,137.2,33.50755874]
[1767969295246,7.28657548,137.25,137.2,33.50755874]
[1767969295820,0.65412646,137.26,137.2,33.50755874]
[1767969296015,13.3,137.27,137.22,7.99746935]
[1767969296224,7.28657548,137.27,137.23,7.28657548]
[1767969296422,7.28657548,137.29,137.24,7.28657548]
[1767969296829,7.28657548,137.29,137.25,7.99648]
[1767969297340,7.28657548,137.3,137.25,15.28305548]
[1767969297638,7.28657548,137.3,137.25,33.49799172]
[1767969297829,7.28657548,137.3,137.25,7.99648]
[1767969298030,7.28657548,137.29,137.25,7.99648]
[1767969298835,7.28247353,137.32,137.26,0.71089387]
[1767969299039,7.28657548,137.31,137.27,7.28657548]
[1767969299240,7.28657548,137.31,137.26,7.99746935]
[1767969299536,7.28657548,137.29,137.24,28.58375119]
[1767969299751,7.28657548,137.29,137.24,21.29717571]
[1767969300045,7.28657548,137.29,137.25,7.99680332]
[1767969300211,7.28657548,137.29,137.25,0.71089387]
[1767969300417,7.93643756,137.32,137.26,0.71089387]
[1767969300720,7.28657548,137.3,137.26,0.71089387]
[1767969301023,7.28657548,137.28,137.24,7.2863901]
[1767969301226,7.28657548,137.28,137.24,7.28633317]
[1767969301428,7.94070194,137.26,137.22,7.2875235]
[1767969301828,7.28657548,137.24,137.19,7.99746935]
[1767969302028,0.65412646,137.25,137.21,7.28799656]
[1767969302330,32.77824109,137.3,137.24,0.71089387]
[1767969302331,0.65412646,137.3,137.24,0.71089387]
[1767969302530,7.28657548,137.3,137.26,0.71089387]
[1767969302742,0.72121697,137.29,137.23,0.65797963]
[1767969302934,0.72121697,137.33,137.27,0.65797963]
[1767969303125,8.00307456,137.33,137.27,7.94455511]
[1767969303325,0.72121697,137.36,137.3,7.94455511]
[1767969303547,0.72121697,137.36,137.28,0.94230277]
[1767969303743,0.72121697,137.32,137.27,13.3]
[1767969303923,7.28657548,137.28,137.24,7.94430896]
[1767969304127,8.00779245,137.27,137.2,18.87822763]
[1767969304325,7.28657548,137.22,137.18,7.9473277]
[1767969304540,7.28657548,137.23,137.18,7.9473277]
[1767969304753,8.00779245,137.24,137.18,15.23390318]
[1767969305040,7.28593461,137.26,137.2,7.94455511]
[1767969305261,7.28657548,137.24,137.2,0.65797963]
[1767969305751,7.28657548,137.25,137.2,0.65797963]
[1767969306325,7.28657548,137.23,137.18,15.23390318]
[1767969306761,7.28657548,137.22,137.18,7.28963919]
[1767969307060,0.72121697,137.23,137.18,7.28963919]
[1767969307352,8.00790484,137.24,137.18,7.94761882]
[1767969307541,7.28657548,137.22,137.18,7.28963919]
[1767969307732,8.00779245,137.23,137.18,25.51387012]
[1767969307935,7.28657548,137.24,137.18,33.45842523]
[1767969308140,0.72121697,137.27,137.21,7.94455511]
[1767969308340,7.28657548,137.23,137.19,0.65797963]
[1767969308537,0.72121697,137.25,137.19,7.94455511]
[1767969308736,7.28657548,137.23,137.18,7.28963919]
[1767969309047,0.72121697,137.24,137.18,7.28963919]
[1767969309048,7.28657548,137.22,137.18,7.28963919]
[1767969309252,0.72121697,137.27,137.19,7.94455511]
[1767969309466,8.00506867,137.29,137.22,7.94455511]
[1767969309628,0.72121697,137.29,137.23,7.28657548]
[1767969309830,15.0,137.37,137.22,0.65797963]
[1767969309831,8.00313983,137.33,137.27,7.28657548]
[1767969310029,7.28657548,137.3,137.23,0.65797963]
[1767969310236,0.72121697,137.31,137.24,7.28657548]
[1767969310237,7.28657548,137.29,137.24,7.28657548]
[1767969310430,7.28657548,137.28,137.23,0.65797963]
[1767969310630,8.00779245,137.29,137.24,7.28657548]
[1767969310953,0.72121697,137.32,137.25,0.65797963]
[1767969311155,8.00779245,137.31,137.26,14.57201916]
[1767969311339,8.00779245,137.31,137.26,7.28544368]
[1767969311340,7.28657548,137.3,137.26,7.28544368]
[1767969312060,8.00315983,137.33,137.27,7.28657548]
[1767969312267,0.72121697,137.33,137.28,7.28657548]
[1767969312434,7.28657548,137.34,137.29,7.28657548]
[1767969312828,8.00222685,137.35,137.29,7.28657548]
[1767969313151,7.28657548,137.34,137.29,14.56991901]
[1767969313347,8.00779245,137.35,137.3,7.28657548]
[1767969313530,7.28657548,137.34,137.3,7.22657549]
[1767969313730,7.28657548,137.34,137.29,33.43752789]
[1767969314038,13.3,137.38,137.29,33.43752789]
[1767969314039,8.00049143,137.38,137.31,7.94455511]
[1767969314246,8.00779245,137.37,137.32,7.28657548]
[1767969314445,7.28657548,137.34,137.29,7.28334353]
[1767969314644,8.00779245,137.34,137.29,14.56991901]
[1767969314955,8.00010814,137.39,137.32,7.28657548]
[1767969315146,0.72121697,137.39,137.35,3.80079625]
[1767969315351,0.72121697,137.44,137.36,7.28657548]
[1767969315655,7.28657548,137.41,137.36,7.28657548]
[1767969315846,0.72121697,137.43,137.35,2.19574146]
[1767969315847,7.28657548,137.4,137.35,9.48231694]
[1767969316754,0.72121697,137.41,137.37,7.28657548]
[1767969316946,8.00779245,137.41,137.36,7.57089862]
[1767969317143,8.00779245,137.41,137.36,7.5639938]
[1767969317458,8.00779245,137.41,137.36,14.85056928]
[1767969317657,0.72121697,137.4,137.36,7.5639938]
[1767969317955,7.28657548,137.38,137.35,2.19574146]
[1767969318136,7.28657548,137.39,137.35,9.47622568]
[1767969318336,7.28657548,137.39,137.35,2.19574146]
[1767969318337,7.28657548,137.38,137.35,2.19574146]
[1767969318660,7.28657548,137.36,137.32,7.93989805]
[1767969318850,7.28657548,137.37,137.33,7.93950807]
[1767969319047,7.28657548,137.39,137.35,0.65797963]
[1767969319244,7.28657548,137.38,137.33,0.65797963]
[1767969319450,7.27862697,137.39,137.33,7.93957915]
[1767969319644,7.28657548,137.38,137.34,7.93917522]
[1767969319961,7.28657548,137.38,137.34,0.65797963]
[1767969320344,7.28657548,137.36,137.32,0.65797963]
[1767969320548,0.51285665,137.38,137.32,0.65797963]
[1767969320858,7.28657548,137.36,137.32,0.65797963]
[1767969321042,7.27859909,137.39,137.34,0.65797963]
[1767969321355,18.19407279,137.41,137.34,7.93915208]
[1767969321356,25.57056351,137.41,137.34,7.93915208]
[1767969321562,7.28657548,137.38,137.34,0.65797963]
[1767969321760,7.28657548,137.37,137.32,15.51096272]
[1767969322145,7.28657548,137.37,137.32,8.22438724]
[1767969322339,7.28657548,137.34,137.32,0.65797963]
[1767969322552,7.28657548,137.35,137.32,0.65797963]
[1767969322747,7.28657548,137.33,137.29,7.28366786]
[1767969322961,7.28657548,137.33,137.29,0.65797963]
[1767969323148,14.56891168,137.32,137.27,7.94455511]
[1767969323347,0.11129195,137.35,137.27,15.22920924]
[1767969323654,7.28657548,137.34,137.29,7.94455511]
[1767969324737,0.10317994,137.33,137.27,8.2269569]
[1767969325060,26.00359283,137.35,137.27,15.22924141]
[1767969325277,7.28657548,137.33,137.29,0.65797963]
[1767969325641,7.28657548,137.32,137.29,0.65797963]
[1767969326039,7.28657548,137.31,137.27,7.94455511]
[1767969326355,7.28657548,137.3,137.27,0.65797963]
[1767969326678,7.28657548,137.31,137.27,0.65797963]
[1767969326865,7.28657548,137.28,137.25,0.65797963]
[1767969327064,7.28657548,137.26,137.23,0.65797963]
[1767969327263,0.10727671,137.3,137.19,18.22276178]
[1767969327264,7.28438228,137.28,137.22,7.94455511]
[1767969327566,14.57095776,137.28,137.23,0.65797963]
[1767969327772,14.57095776,137.28,137.23,7.94455511]
[1767969327965,7.28438228,137.28,137.23,0.65797963]
[1767969328179,7.28657548,137.26,137.21,7.94591734]
[1767969328470,7.28657548,137.26,137.21,15.23249282]
[1767969328661,11.84696094,137.25,137.2,19.13551462]
[1767969328974,11.84696094,137.23,137.2,0.65797963]
[1767969329269,11.84696094,137.24,137.2,0.65797963]
[1767969329653,7.28639867,137.25,137.18,7.9475776]
[1767969329858,11.84696094,137.23,137.19,12.50494057]
[1767969330265,11.84696094,137.23,137.19,0.65797963]
[1767969330651,11.84696094,137.23,137.18,19.13655891]
[1767969331046,11.84696094,137.23,137.19,11.84696094]
[1767969331259,11.84696094,137.23,137.17,0.94230277]
[1767969331458,11.84696094,137.23,137.19,11.84696094]
[1767969331653,11.84696094,137.24,137.19,11.84696094]
[1767969331872,7.28610073,137.25,137.2,12.50494057]
[1767969332048,6.6801107,137.28,137.22,12.50494057]
[1767969332253,19.65213657,137.29,137.24,11.84696094]
[1767969332445,11.84696094,137.27,137.23,12.50494057]
[1767969333071,7.28395866,137.29,137.24,0.68385077]
[1767969333287,7.28395866,137.29,137.2,13.3]
[1767969333288,11.84696094,137.25,137.2,13.98385077]
[1767969333447,11.84696094,137.26,137.21,12.53081171]
[1767969333846,18.71975656,137.28,137.22,0.68385077]
[1767969334167,11.84696094,137.26,137.22,12.53081171]
[1767969335074,11.84696094,137.25,137.2,21.27236473]
[1767969335375,11.84696094,137.23,137.19,11.84696094]
[1767969335563,11.84696094,137.23,137.19,0.68385077]
[1767969335961,7.28561185,137.26,137.2,0.68385077]
[1767969336158,11.84696094,137.24,137.19,12.53081171]
[1767969336353,11.84696094,137.25,137.2,11.84696094]
[1767969336560,20.68407676,137.27,137.21,12.53081171]
[1767969336968,7.28441512,137.28,137.22,0.68385077]
[1767969337164,11.84696094,137.28,137.23,12.53081171]
[1767969337392,11.84696094,137.28,137.24,19.13343906]
[1767969337681,11.84696094,137.27,137.22,12.53081171]
[1767969337855,11.84696094,137.26,137.22,0.68385077]
[1767969338057,11.84696094,137.26,137.2,0.68385077]
[1767969338058,11.84696094,137.24,137.2,0.68385077]
[1767969338481,11.84696094,137.23,137.18,7.9733689]
[1767969338655,11.84696094,137.24,137.2,11.84696094]
[1767969338856,11.84696094,137.24,137.2,0.68385077]
[1767969339057,11.84696094,137.23,137.19,11.84696094]
[1767969339362,11.84696094,137.23,137.19,12.53081171]
[1767969339576,11.84696094,137.23,137.18,11.84696094]
[1767969339777,11.84696094,137.23,137.18,0.68385077]
[1767969339967,11.84696094,137.22,137.17,25.83081171]
[1767969340293,11.84696094,137.22,137.17,21.27405548]
[1767969340467,11.84696094,137.22,137.17,19.82101642]
[1767969340663,11.84696094,137.22,137.17,0.68385077]
[1767969340867,11.84696094,137.22,137.17,19.82089608]
[1767969341065,11.84696094,137.21,137.17,12.53081171]
[1767969341270,11.84696094,137.22,137.17,12.53081171]
[1767969341858,11.84696094,137.23,137.19,11.84696094]
[1767969342390,11.84696094,137.24,137.19,11.84696094]
[1767969342580,11.84696094,137.23,137.19,11.84696094]
[1767969342885,7.28655493,137.24,137.19,11.84696094]
[1767969342886,7.28601804,137.25,137.2,0.68385077]
[1767969343087,11.84696094,137.23,137.18,12.53081171]
[1767969343268,11.84696094,137.23,137.19,12.53081171]
[1767969343463,18.21290689,137.27,137.21,0.68385077]
[1767969343768,13.3,137.27,137.23,0.68385077]
[1767969343980,11.84696094,137.27,137.23,0.68385077]
[1767969344186,25.59309105,137.29,137.23,0.68385077]
[1767969344387,11.84696094,137.27,137.22,7.9712801]
[1767969344569,11.84696094,137.27,137.23,0.68385077]
[1767969344985,7.2838517,137.29,137.24,0.68385077]
[1767969345205,11.84696094,137.28,137.24,0.68385077]
[1767969345506,36.41212836,137.32,137.22,7.28742933]
[1767969345507,0.52121697,137.38,137.28,0.68385077]
[1767969345666,0.22245187,137.35,137.28,12.40611285]
[1767969345865,11.84696094,137.32,137.28,0.55915191]
[1767969346081,7.28086335,137.35,137.29,11.84696094]
[1767969346286,19.12782429,137.35,137.3,11.84696094]
[1767969346592,11.84696094,137.33,137.29,11.84696094]
[1767969346793,11.84696094,137.34,137.29,11.84696094]
[1767969346979,19.12721231,137.36,137.31,11.84696094]
[1767969347182,7.27970789,137.37,137.32,11.84696094]
[1767969347381,11.84696094,137.34,137.28,7.28434713]
[1767969347565,11.84696094,137.34,137.29,11.84696094]
[1767969347770,0.64591583,137.38,137.31,12.51224186]
[1767969347968,11.84696094,137.36,137.31,0.66528092]
[1767969348187,11.84696094,137.37,137.32,12.51224186]
[1767969348372,11.84696094,137.34,137.3,12.51224186]
[1767969348575,11.84696094,137.36,137.31,12.51224186]
[1767969348990,11.84696094,137.34,137.3,11.84696094]
[1767969349189,11.84696094,137.35,137.3,0.66528092]
[1767969349376,11.84696094,137.34,137.3,0.66528092]
[1767969349693,11.84696094,137.35,137.3,12.51224186]
[1767969349992,0.099,137.39,137.33,12.51224186]
[1767969350196,11.84696094,137.38,137.33,12.51224186]
[1767969350492,11.84696094,137.37,137.33,12.51224186]
[1767969350870,11.84696094,137.37,137.33,0.66528092]
[1767969351070,0.10441446,137.37,137.31,12.51224186]
[1767969351294,11.84696094,137.36,137.32,12.51224186]
[1767969351489,7.32602653,137.39,137.29,7.94874926]
[1767969351490,11.84696094,137.35,137.29,7.94874926]
[1767969351678,11.84696094,137.35,137.3,0.66528092]
[1767969351874,11.84696094,137.35,137.3,12.51224186]
[1767969352074,7.38496912,137.36,137.31,11.84696094]
[1767969352398,7.28055466,137.36,137.31,12.51224186]
[1767969352601,19.1275156,137.36,137.31,0.66528092]
[1767969352818,19.1275156,137.36,137.28,0.66528092]
[1767969352819,11.84696094,137.33,137.28,0.66528092]
[1767969353104,11.9513754,137.34,137.29,11.84696094]
[1767969353396,11.84696094,137.34,137.3,11.84696094]
[1767969353599,31.49819408,137.38,137.31,12.51224186]
[1767969353600,7.27963179,137.37,137.31,12.51224186]
[1767969353774,19.12659273,137.37,137.32,12.51224186]
[1767969354189,11.84696094,137.36,137.32,12.51224186]
[1767969354381,19.12659273,137.37,137.32,12.51224186]
[1767969354578,19.12659273,137.37,137.32,19.79448575]
[1767969354796,19.12659273,137.37,137.32,12.51224186]
[1767969354994,11.84696094,137.36,137.32,0.66528092]
[1767969355203,11.84696094,137.35,137.31,11.84696094]
[1767969355374,11.84696094,137.35,137.3,19.79547217]
[1767969355579,11.84696094,137.35,137.31,12.51224186]
[1767969355773,11.84696094,137.33,137.29,12.51224186]
[1767969356388,0.10441446,137.35,137.29,0.66528092]
[1767969356389,19.12816088,137.34,137.29,0.66528092]
[1767969356697,11.95668212,137.33,137.28,19.13125657]
[1767969356875,19.12816088,137.34,137.29,11.84696094]
[1767969357081,11.84696094,137.36,137.31,12.51224186]
[1767969357578,105.14591583,137.37,137.32,11.84696094]
[1767969357579,124.27248658,137.37,137.32,11.84696094]
[1767969358281,7.28017764,137.36,137.27,0.66528092]
[1767969358584,11.84696094,137.34,137.29,11.84696094]
[1767969358784,7.28017764,137.36,137.3,12.51224186]
[1767969358987,104.5,137.37,137.34,0.66528092]
[1767969359187,13.44216157,137.41,137.34,0.66528092]
[1767969359384,11.84696094,137.4,137.35,0.66528092]
[1767969359584,11.84696094,137.4,137.36,0.66528092]
[1767969360326,20.57800198,137.41,137.36,0.66528092]
[1767969360506,7.27643163,137.43,137.37,0.66528092]
[1767969360681,11.84696094,137.42,137.38,0.66528092]
[1767969360884,7.27643163,137.43,137.38,0.66528092]
[1767969361087,11.84696094,137.42,137.38,0.66528092]
[1767969361602,20.57597898,137.44,137.38,0.66528092]
[1767969361804,11.84696094,137.43,137.39,0.66528092]
[1767969362004,214.5119516,137.5,137.42,0.66528092]
[1767969362005,13.5,137.5,137.42,0.66528092]
[1767969362205,13.5,137.5,137.44,0.66528092]
[1767969362408,20.77287327,137.5,137.45,0.66528092]
[1767969362704,20.77287327,137.5,137.4,20.57784893]
[1767969362705,11.84696094,137.46,137.4,20.57784893]
[1767969362904,7.47336779,137.49,137.42,0.70189272]
[1767969363204,0.2,137.49,137.44,0.70189272]
[1767969363410,0.2,137.49,137.46,0.70189272]
[1767969363608,0.2,137.5,137.47,0.70189272]
[1767969363792,13.5,137.59,137.51,0.70189272]
[1767969363983,13.5,137.59,137.52,0.70189272]
[1767969364179,11.84696094,137.56,137.52,0.70189272]
[1767969364388,11.84696094,137.55,137.52,0.70189272]
[1767969364586,11.94794085,137.53,137.46,0.70189272]
[1767969364790,13.399,137.55,137.46,0.28432314]
[1767969365097,11.84696094,137.49,137.44,12.13128408]
[1767969365294,0.22529334,137.54,137.45,11.84696094]
[1767969365611,11.84696094,137.51,137.46,11.84696094]
[1767969365987,0.22529334,137.54,137.44,7.55982599]
[1767969366307,0.22529334,137.54,137.42,25.14696094]
[1767969366308,11.84696094,137.47,137.42,25.14696094]
[1767969366482,7.27325623,137.49,137.41,19.12432929]
[1767969366686,7.27325623,137.49,137.42,0.70189272]
[1767969366914,11.84696094,137.47,137.43,0.70189272]
[1767969367103,11.84696094,137.46,137.43,0.70189272]
[1767969367707,11.84696094,137.48,137.44,0.70189272]
[1767969368312,19.12021717,137.49,137.44,0.70189272]
[1767969368687,11.84696094,137.5,137.46,0.70189272]
[1767969368889,7.27123025,137.53,137.47,0.70189272]
[1767969369105,11.84696094,137.5,137.47,0.70189272]
[1767969369516,11.84696094,137.49,137.45,0.70189272]
[1767969369704,25.54808235,137.53,137.45,0.70189272]
[1767969369894,11.84696094,137.49,137.45,0.70189272]
[1767969370389,11.84696094,137.48,137.43,20.10944263]
[1767969370589,11.84696094,137.47,137.42,7.97874618]
[1767969370791,7.27388918,137.48,137.42,7.97874618]
[1767969371027,7.27388918,137.48,137.42,0.70189272]
[1767969371208,11.84696094,137.46,137.42,0.70189272]
[1767969371404,7.27388918,137.48,137.42,0.70189272]
[1767969371613,11.84696094,137.44,137.4,21.40192989]
[1767969371796,11.84696094,137.44,137.4,0.70189272]
[1767969371989,25.45835237,137.48,137.41,0.70189272]
[1767969371990,7.27388918,137.48,137.41,0.70189272]
[1767969372193,11.84696094,137.47,137.42,0.70189272]
[1767969372409,11.84696094,137.45,137.4,0.84405429]
[1767969372609,11.84696094,137.46,137.41,11.84696094]
[1767969372810,11.84696094,137.47,137.42,0.70189272]
[1767969373118,11.84696094,137.48,137.44,0.70189272]
[1767969373313,11.84696094,137.49,137.45,0.70189272]
[1767969373518,13.28,137.51,137.41,13.56432314]
[1767969373519,11.84696094,137.47,137.42,0.70189272]
[1767969373813,11.84696094,137.51,137.47,0.70189272]
[1767969374019,11.84696094,137.52,137.47,12.54885366]
[1767969374315,38.82619019,137.54,137.47,0.70189272]
[1767969374608,11.84696094,137.52,137.48,0.70189272]
[1767969374818,0.42656904,137.58,137.5,0.70189272]
[1767969374997,13.70656904,137.58,137.5,12.54885366]
[1767969375200,25.44159336,137.57,137.5,0.70189272]
[1767969375401,7.26902667,137.57,137.51,12.54885366]
[1767969375601,11.84696094,137.55,137.51,0.70189272]
[1767969375804,11.84696094,137.56,137.51,12.54885366]
[1767969375994,7.26902667,137.57,137.51,12.54885366]
[1767969376196,11.84696094,137.56,137.51,12.54885366]
[1767969376611,11.84696094,137.56,137.51,0.70189272]
[1767969376919,11.84696094,137.53,137.49,0.70189272]
[1767969377122,11.84696094,137.55,137.5,11.84696094]
[1767969377325,11.84696094,137.55,137.5,12.54885366]
[1767969377625,11.84696094,137.54,137.5,0.70189272]
[1767969377826,11.84696094,137.53,137.48,0.70189272]
[1767969378020,11.84696094,137.54,137.49,12.54885366]
[1767969378203,11.84696094,137.55,137.51,0.70189272]
[1767969378402,13.28,137.56,137.51,0.70189272]
[1767969378704,11.84696094,137.55,137.51,0.70189272]
[1767969378895,11.84696094,137.53,137.48,0.70189272]
[1767969379096,20.54974407,137.56,137.51,0.70189272]
[1767969379320,13.28,137.56,137.52,0.70189272]
[1767969379518,11.84696094,137.57,137.53,12.54885366]
[1767969379703,19.31547739,137.58,137.53,12.54885366]
[1767969380400,7.46851645,137.58,137.53,0.70189272]
[1767969380594,11.84696094,137.55,137.51,0.70189272]
[1767969381594,11.84696094,137.53,137.49,0.70189272]
[1767969381796,11.84696094,137.53,137.49,19.82206117]
[1767969382218,13.38150075,137.56,137.49,0.70189272]
[1767969382402,13.38150075,137.56,137.49,7.97509247]
[1767969382604,11.84696094,137.53,137.49,7.97509247]
[1767969382795,11.84696094,137.53,137.5,0.70189272]
[1767969382998,11.84696094,137.55,137.51,0.70189272]
[1767969383603,7.26956313,137.56,137.51,0.70189272]
[1767969383803,11.84696094,137.55,137.51,0.70189272]
[1767969384211,11.84696094,137.53,137.49,0.70189272]
[1767969384514,13.28,137.55,137.49,0.70189272]
[1767969384818,11.84696094,137.53,137.49,0.70189272]
[1767969384999,19.11811309,137.53,137.49,0.70189272]
[1767969385204,7.27115215,137.53,137.49,0.70189272]
[1767969385409,11.84696094,137.52,137.49,0.70189272]
[1767969385703,7.27115215,137.53,137.45,23.15164821]
[1767969385704,11.84696094,137.5,137.45,0.70189272]
[1767969385921,11.84696094,137.5,137.46,0.70189272]
[1767969386306,11.84696094,137.48,137.46,0.70189272]
[1767969387123,11.84696094,137.49,137.46,0.70189272]
[1767969387307,7.27317085,137.5,137.46,7.97657276]
[1767969387308,11.84696094,137.5,137.46,7.97657276]
[1767969387715,13.28,137.52,137.46,7.97657276]
[1767969387716,11.84696094,137.49,137.46,0.70189272]
[1767969387918,11.84696094,137.48,137.44,0.98621586]
[1767969388127,11.84696094,137.48,137.45,0.70189272]
[1767969388424,11.84696094,137.46,137.43,0.70189272]
[1767969388602,11.84696094,137.44,137.41,7.97929268]
[1767969388802,13.28,137.49,137.42,0.70189272]
[1767969388999,11.84696094,137.46,137.43,0.70189272]
[1767969389205,11.84696094,137.44,137.4,0.70189272]
[1767969389410,11.84696094,137.43,137.4,0.70189272]
[1767969389607,0.22529334,137.47,137.4,0.70189272]
[1767969389805,11.84696094,137.46,137.41,0.70189272]
[1767969390006,11.84696094,137.44,137.42,0.70189272]
[1767969390226,11.84696094,137.43,137.4,0.70189272]
[1767969390733,25.55724846,137.48,137.41,0.70189272]
[1767969391030,7.27185134,137.45,137.41,0.70189272]
[1767969391523,7.27185134,137.44,137.41,7.97928605]
[1767969391730,7.27185134,137.43,137.39,0.98621586]
[1767969391927,7.27185134,137.44,137.4,0.70189272]
[1767969392232,7.27185134,137.44,137.41,0.70189272]
[1767969392726,7.27185134,137.45,137.42,0.70189272]
[1767969392916,7.27185134,137.46,137.42,0.70189272]
[1767969393106,7.2738621,137.48,137.43,0.65263248]
[1767969393302,14.54571344,137.48,137.44,0.65263248]
[1767969393506,25.68361863,137.48,137.4,0.65263248]
[1767969393807,25.45832529,137.48,137.41,0.65263248]
[1767969394020,25.45832529,137.48,137.42,0.65263248]
[1767969394229,14.54506003,137.5,137.45,0.65263248]
[1767969394527,7.27185134,137.51,137.47,0.65263248]
[1767969394720,7.27185134,137.53,137.48,0.65263248]
[1767969394930,20.54971176,137.56,137.49,0.65263248]
[1767969395229,7.27185134,137.56,137.53,0.65263248]
[1767969395524,0.2,137.58,137.53,0.65263248]
[1767969395731,7.27185134,137.57,137.53,0.65263248]
[1767969396333,7.27185134,137.54,137.51,0.65263248]
[1767969397028,7.27185134,137.52,137.49,0.93695562]
[1767969397240,7.26979732,137.56,137.51,0.65263248]
[1767969397412,7.27185134,137.53,137.49,0.65263248]